lending/lending_fUSD_20240610
["ID","MTS","AMOUNT","RATE_DAILY","PERIOD"]
[328974399,1718037046515,-500.0,0.00029999,4]
[328974401,1718037046525,-500.0,0.00029999,4]
[328974403,1718037046536,-319.03,0.00029999,4]
[328974405,1718037046547,-500.0,0.00029999,4]
[328974407,1718037046557,-500.0,0.00029999,4]
[328974409,1718037046568,-500.0,0.00029999,4]
[328974411,1718037046578,-500.0,0.00029999,4]
[328974413,1718037046589,-643.43,0.00029999,4]
[328974415,1718037046600,-500.0,0.00029999,4]
[328974417,1718037046610,-500.0,0.00029999,4]
[328974419,1718037046621,-500.0,0.00029999,4]
[328974421,1718037046632,-500.0,0.00029999,4]
[328974423,1718037046642,-500.0,0.00029999,4]
[328974425,1718037046652,-500.0,0.00029999,4]
[328974427,1718037046663,-500.0,0.00029999,4]
[328974429,1718037046673,-578.5007481,0.00029999,4]
[328974431,1718037046687,-12887.92,0.00029999,2]
[328974433,1718037046697,-496.23354386,0.00029999,4]
[328974435,1718037046707,-500.0,0.00029999,4]
[328974437,1718037046717,-355.85209455,0.00029999,4]
[328974439,1718037046727,-500.0,0.00029999,4]
[328974441,1718037046737,-150.3,0.00029999,4]
[328974443,1718037046748,-500.0,0.00029999,4]
[328974445,1718037046758,-500.0,0.00029999,4]
[328974447,1718037046768,-500.0,0.00029999,4]
[328974449,1718037046778,-1261.12,0.00029999,4]
[328974451,1718037046788,-1261.12,0.00029999,4]
[328974453,1718037046798,-1261.12,0.00029999,4]
[328974455,1718037046808,-446.82424903,0.00029999,4]
[328974457,1718037046823,-539.06283141,0.00029999,4]
[328974459,1718037046835,-275.23291956,0.00029999,4]
[328974461,1718037046845,-1261.12,0.00029999,4]
[328974463,1718037046855,-1261.12,0.00029999,4]
[328974465,1718037046866,-1261.12,0.00029999,4]
[328974468,1718037046876,-1261.12,0.00029999,4]
[328974469,1718037046886,-1261.12,0.00029999,4]
[328974471,1718037046897,-1261.12,0.00029999,4]
[328974473,1718037046907,-1261.12,0.00029999,4]
[328974475,1718037046918,-1261.12,0.00029999,4]
[328974477,1718037046930,-1261.12,0.00029999,4]
[328974479,1718037046940,-1261.12,0.00029999,4]
[328974481,1718037046950,-500.0,0.00029999,4]
[328974483,1718037046960,-1261.12,0.00029999,4]
[328974485,1718037046970,-500.0,0.00029999,4]
[328974487,1718037046980,-1261.12,0.00029999,4]
[328974489,1718037046990,-366.42925297,0.00029999,4]
[328974491,1718037047000,-1261.12,0.00029999,4]
[328974493,1718037047011,-1261.12,0.00029999,4]
[328974495,1718037047021,-1261.12,0.00029999,4]
[328974497,1718037047032,-1261.12,0.00029999,4]
[328974499,1718037047042,-1261.12,0.00029999,4]
[328974501,1718037047051,-1261.12,0.00029999,4]
[328974504,1718037047062,-1261.12,0.00029999,4]
[328974505,1718037047072,-1261.24089878,0.00029999,4]
[328974508,1718037047083,-42604.76322869,0.0003,13]
[328974510,1718037047096,-207.74503891,0.0003,13]
[328974512,1718037047106,-16052.57127109,0.0003,2]
[328974515,1718037047126,-24458.8166724,0.0003,2]
[328974517,1718037047139,-43926.04115977,0.0003,2]
[328974519,1718037047152,-17828.8685394,0.0003,2]
[328974522,1718037047166,-2022.7165844,0.0003,2]
[328974524,1718037047179,-5507.7171,0.0003,2]
[328974526,1718037047191,-5454.38088483,0.0003,2]
[328974528,1718037047204,-23180.84057806,0.0003,2]
[328974530,1718037047217,-774.80262266,0.0003,2]
[328974532,1718037047229,-336.94213039,0.0003,2]
[328974536,1718037047255,-405.5664405,0.0003,2]
[328974538,1718037047267,-464.58898707,0.0003,2]
[328974540,1718037047279,-3116.8991219,0.0003,2]
[328974542,1718037047292,-27847.57188,0.0003,2]
[328974545,1718037047304,-16513.83401791,0.0003,2]
[328974547,1718037047315,-1405.2,0.0003,2]
[328974549,1718037047329,-719.07075033,0.0003,2]
[328974551,1718037047344,-1207.5568522,0.0003,2]
[328974553,1718037047356,-2151.0,0.0003,2]
[328974558,1718037047391,-6218.39108876,0.0003,2]
[328974561,1718037047417,-1078.80118762,0.0003,2]
[328974563,1718037047432,-1370.91809665,0.0003,2]
[328974565,1718037047444,-6554.52722293,0.0003,2]
[328974569,1718037047475,-764.825,0.0003,2]
[328974572,1718037047487,-442.18610858,0.0003,2]
[328974574,1718037047499,-685.50165271,0.0003,2]
[328974576,1718037047512,-4303.63783665,0.0003,2]
[328974578,1718037047524,-2788.65493334,0.0003,2]
[328974580,1718037047537,-2074.56062644,0.0003,2]
[328974583,1718037047549,-300.08603421,0.0003,2]
[328974586,1718037047570,-12589.94521892,0.0003,2]
[328974588,1718037047583,-26922.14957741,0.0003,2]
[328974590,1718037047596,-2528.99309734,0.0003,2]
[328974592,1718037047608,-2096.64,0.0003,2]
[328974595,1718037047620,-1016.1,0.0003,2]
[328974597,1718037047632,-15147.76561507,0.0003,2]
[328974599,1718037047645,-1178.32502374,0.0003,2]
[328974601,1718037047657,-3924.53627189,0.0003,2]
[328974607,1718037047736,-128457.93218175,0.0003,2]
[328974608,1718037047747,-2091.65,0.0003,2]
[328974609,1718037047759,-29232.48670689,0.0003,2]
[328974610,1718037047771,-25896.87249875,0.0003,2]
[328974611,1718037047782,-9411.26014652,0.0003,2]
[328974612,1718037047794,-25574.52361261,0.0003,2]
[328974613,1718037047817,-6682.25255547,0.0003,2]
[328974615,1718037047830,-500.0,0.0003,2]
[328974617,1718037047842,-1786.701546,0.0003,2]
[328974620,1718037047858,-14082.16063916,0.0003,2]
[328974622,1718037047870,-694.63,0.0003,2]
[328974624,1718037047886,-1256.00964337,0.0003,2]
[328974629,1718037047924,-435.17214637,0.0003,2]
[328974631,1718037047940,-35574.9608538,0.0003,2]
[328974634,1718037047956,-1938.14415443,0.0003,2]
[328974671,1718037048342,-549.53072305,0.0003,2]
[328975172,1718037773295,-2000.0,0.00030136,90]
[328975173,1718037773325,-200.0,0.00030157,120]
[328975174,1718037773355,-2000.0,0.0003041,90]
[328975175,1718037773384,-4899.658855,0.000305,30]
[328975176,1718037773414,-2000.0,0.00030684,90]
[328975177,1718037773442,-200.0,0.00030757,120]
[328975178,1718037773472,-1998.13579615,0.00030958,90]
[328975179,1718037773500,-638.50988009,0.00031,30]
[328975180,1718037773529,-200.0,0.00031436,120]
[328975181,1718037773560,-195.81761895,0.00031699,30]
[328975182,1718037773593,-195.81761895,0.00031836,30]
[328975183,1718037773625,-195.81761895,0.00031973,30]
[328975184,1718037773655,-1401.06542166,0.00032,60]
[328975185,1718037773686,-195.81761895,0.0003211,30]
[328975186,1718037773716,-195.81761895,0.00032247,30]
[328975187,1718037773743,-600.0,0.000323,120]
[328975188,1718037773772,-195.81761895,0.00032384,30]
[328975189,1718037773803,-195.81761895,0.00032493,30]
[328975190,1718037773833,-283.45,0.00032548,30]
[328975191,1718037773876,-150.0,0.00032558,30]
[328975192,1718037773904,-999.99999999,0.000326,30]
[328975193,1718037773936,-3016.0,0.0003263,30]
[328975194,1718037773969,-195.81761895,0.0003263,30]
[328975195,1718037774003,-10000.0,0.00032673,30]
[328975196,1718037774035,-195.81761895,0.00032767,30]
[328975197,1718037774066,-600.0,0.00032876,110]
[328975198,1718037774096,-600.0,0.00032876,110]
[328975199,1718037774126,-214.65844277,0.00032876,110]
[328975200,1718037774161,-59095.44092493,0.000329,30]
[328975201,1718037774190,-195.81761895,0.00032904,30]
[328975202,1718037774219,-775.61955448,0.00033,120]
[328975203,1718037774247,-535.51665069,0.00033,120]
[328975204,1718037774277,-195.81761895,0.00033041,30]
[328975205,1718037774306,-195.81761895,0.00033178,30]
[328975206,1718037774336,-195.81761895,0.00033315,30]
[328975207,1718037774365,-195.81761895,0.00033452,30]
[328975208,1718037774393,-1224.914713,0.000335,30]
[328975209,1718037774426,-195.81761895,0.00033589,30]
[328975210,1718037774458,-5664.81485176,0.00035,30]
[328975211,1718037774485,-5000.0,0.00035,120]
[328975212,1718037774515,-1000.0,0.00035699,30]
[328975213,1718037774544,-5000.0,0.000359,30]
[328975214,1718037774572,-1000.0,0.00036032,30]
[328975215,1718037774602,-1000.0,0.00036364,30]
[328975216,1718037774632,-1000.0,0.00036696,30]
[328975217,1718037774663,-1000.0,0.00037028,30]
[328975218,1718037774843,-1000.0,0.0003736,30]
[328975219,1718037774876,-283.45,0.00037529,30]
[328975220,1718037774906,-1000.0,0.00037692,30]
[328975221,1718037774934,-7889.86468436,0.000379,30]
[328975222,1718037774962,-1000.0,0.00038024,30]
[328975223,1718037774990,-379.02,0.00038169,120]
[328975224,1718037775017,-1208.0,0.0003829,30]
[328975225,1718037775045,-1000.0,0.00038356,30]
[328975226,1718037775077,-150.0,0.0003848,120]
[328975227,1718037775105,-1523.87790905,0.000389,30]
[328975228,1718037775133,-1000.0,0.00039,120]
[328975229,1718037775167,-51949.51144909,0.000399,30]
[328975230,1718037775195,-1000.0,0.0003998,60]
[328975231,1718037775230,-50000.0,0.0004,30]
[328975232,1718037775260,-9988.8050668,0.0004,30]
[328975233,1718037775287,-290.62190698,0.0004,120]
[328975234,1718037775344,-10027.0,0.0004,35]
[328975235,1718037775380,-2052.42,0.0004,32]
[328975236,1718037775412,-336.68311067,0.0004,30]
[328975237,1718037775443,-300.0,0.0004,30]
[328975238,1718037775469,-300.0,0.0004,30]
[328975239,1718037775496,-300.0,0.0004,30]
[328975240,1718037775532,-300.0,0.0004,30]
[328975241,1718037775570,-300.0,0.0004,30]
[328975242,1718037775607,-300.0,0.0004,30]
[328975243,1718037775637,-300.0,0.0004,30]
[328975244,1718037775675,-300.0,0.0004,30]
[328975245,1718037775702,-400.0,0.0004,30]
[328975246,1718037775741,-300.0,0.0004,30]
[328975247,1718037775769,-300.0,0.0004,30]
[328975248,1718037775797,-300.0,0.0004,30]
[328975249,1718037775825,-300.0,0.0004,30]
[328975250,1718037775854,-300.0,0.0004,30]
[328975251,1718037775885,-1000.0,0.0004,120]
[328975252,1718037775920,-5000.0,0.0004,120]
[328975253,1718037775948,-520.09273908,0.0004,60]
[328975254,1718037775976,-166.572,0.0004,120]
[328975255,1718037776003,-493.19592149,0.0004001,30]
[328975256,1718037776030,-716.89388519,0.000404,120]
[328975257,1718037776057,-5838.3604554,0.0004052,120]
[328975258,1718037776086,-774.0,0.000406,30]
[328975259,1718037776112,-3007.27333065,0.000407,30]
[328975260,1718037776151,-50000.0,0.00041,31]
[328975261,1718037776178,-2429.15896746,0.00041,30]
[328975262,1718037776206,-2665.07002243,0.00041,50]
[328975263,1718037776234,-151.0,0.00041,43]
[328975264,1718037776265,-510.0,0.00041095,120]
[328975265,1718037792041,1269.89825754,0.000389,30]
[328975266,1718037872372,-213.60003104,0.0001389,2]
[328975267,1718037872399,-151.86,0.0001399,2]
[328975268,1718037872428,-26634.53996896,0.00014,2]
[328975270,1718038031172,-3066.02458345,0.00013998,2]
[328975271,1718038031195,-797.0,0.00013999,2]
[328975272,1718038031224,-8214.28105327,0.00014,2]
[328975288,1718038232301,-366.86756743,0.00013948,2]
[328975289,1718038232312,-157.70078152,0.00013948,2]
[328975291,1718038232322,-999.23522368,0.00013948,2]
[328975292,1718038232332,-300.0,0.00013999,2]
[328975293,1718038232342,-5115.96284255,0.00014,2]
[328975294,1718038232734,-10698.30394,0.00014,2]
[328975295,1718038232781,-1154521.46384698,0.00014,2]
[328975296,1718038232894,-33730.93860992,0.00014,2]
[328975297,1718038232904,-220.26118388,0.00014048,2]
[328975298,1718038232915,-1302.51706264,0.00014248,2]
[328975299,1718038232925,-4615.31940654,0.00014985,2]
[328975300,1718038232936,-31505.0,0.00014986,2]
[328975301,1718038232946,-295.79518933,0.00014998,2]
[328975302,1718038232956,-2336.43414592,0.00014998,2]
[328975303,1718038232966,-316.86419262,0.00014998,2]
[328975304,1718038232975,-156.19729204,0.00014998,2]
[328975305,1718038232986,-171.17946158,0.00014998,2]
[328975306,1718038232995,-155.93763413,0.00014998,2]
[328975307,1718038233006,-482.74768726,0.00014998,2]
[328975308,1718038233016,-1348.57989397,0.00014998,2]
[328975309,1718038233026,-542.37774006,0.00014998,2]
[328975310,1718038233036,-528.36349133,0.00014999,2]
[328975311,1718038233045,-27749.56215251,0.00015,2]
[328975312,1718038233058,-332396.4875833,0.00015,2]
[328975313,1718038233069,-4147.36848739,0.00015,2]
[328975314,1718038233081,-3270.48850594,0.00015,2]
[328975315,1718038233179,-6882.67915909,0.00015,2]
[328975316,1718038233191,-6855.0,0.00015,2]
[328975369,1718038241722,-768.051742,0.00015,2]
[328975370,1718038241735,-413.40854844,0.00015,2]
[328975371,1718038241885,-760.11591725,0.00015,2]
[328975372,1718038241897,-359.45574608,0.00015,2]
[328975373,1718038241910,-10799.63006721,0.00015,2]
[328975374,1718038242064,-1216.15843688,0.00015,2]
[328975375,1718038242239,-650.78342255,0.00015,2]
[328975383,1718038244050,-310.0,0.00014999,2]
[328975384,1718038244063,-8183.93899859,0.00014999,2]
[328975385,1718038244076,-800.0,0.00014999,2]
[328975386,1718038244088,-2918.75,0.00014999,2]
[328975387,1718038244243,-7351.92807697,0.00014999,2]
[328975388,1718038244253,-16675.82040303,0.00015,2]
[328975389,1718038244265,-4075.9,0.00015,2]
[328975390,1718038244421,-779.22678167,0.00015,2]
[328975391,1718038244433,-51480.76652093,0.00015,2]
[328975392,1718038244445,-432.0,0.00015,2]
[328975393,1718038244457,-5751.20568357,0.00015,2]
[328975394,1718038244607,-1440.05401422,0.00015,2]
[328975395,1718038244620,-48000.0,0.00015,2]
[328975396,1718038244632,-735226.88498715,0.00015,2]
[328975531,1718038246304,-15415.84,0.00015,2]
[328975545,1718038246437,-2204.72580411,0.00015,2]
[328975547,1718038246449,-815.94047023,0.00015,2]
[328975549,1718038246461,-1562.11077063,0.00015,2]
[328975550,1718038246473,-6354.23051065,0.00015,2]
[328975559,1718038246614,-25152.30969358,0.00015,2]
[328975560,1718038246627,-223669.70143577,0.00015,2]
[328975561,1718038246639,-800.0,0.00015,2]
[328975562,1718038246651,-349.695,0.00015,2]
[328975567,1718038246764,-953.30989889,0.00015,2]
[328975569,1718038246777,-667.2379924,0.00015,2]
[328975583,1718038246938,-80000.0,0.00015,2]
[328975586,1718038246951,-365.56917696,0.00015,2]
[328975597,1718038247068,-2871.28224305,0.00015,2]
[328975599,1718038247080,-2567.87533747,0.00015,2]
[328975601,1718038247092,-711.93069116,0.00015,2]
[328975604,1718038247104,-572.05675015,0.00015,2]
[328976306,1718038278516,-1628342.38173456,0.00015,2]
[328976312,1718039082319,-3019.17951546,0.00013972,2]
[328976313,1718039082343,-786.3940397,0.00013973,2]
[328976314,1718039082367,-536.37434974,0.00013974,2]
[328976315,1718039082392,-155.0,0.00013995,2]
[328976316,1718039082417,-155.0,0.00013998,2]
[328976317,1718039082446,-300.0,0.00013999,2]
[328976318,1718039082468,-500.0,0.00014,2]
[328976319,1718039082492,-500.0,0.00014,2]
[328976320,1718039082520,-797.0,0.00014,2]
[328976321,1718039082545,-217.88223365,0.00014617,2]
[328976322,1718039082569,-5427.60763907,0.00014689,2]
[328976323,1718039082594,-1791.56222238,0.00014697,2]
[328976324,1718039237147,-150.13528618,0.00014597,2]
[328976332,1718039433014,-2336.78675648,0.00014593,2]
[328976333,1718039433024,-542.8956905,0.00014594,2]
[328976334,1718039433033,-170.84638938,0.00014597,2]
[328976335,1718039433043,-27524.90565828,0.00014597,2]
[328976336,1718039433055,-428.32614833,0.00014597,2]
[328976337,1718039433074,-1063.30996352,0.00014597,2]
[328976338,1718039433214,-358172.97937843,0.00014597,2]
[328976339,1718039433227,-160714.227109,0.00014597,2]
[328976340,1718039433236,-155.0,0.00014597,2]
[328976341,1718039433246,-34099.82291342,0.00014698,2]
[328976342,1718039433256,-4778.74629387,0.00014699,2]
[328976343,1718039433267,-2611.20547856,0.000147,2]
[328976344,1718039433276,-3000.0,0.0001485,2]
[328976345,1718039433285,-183.4578833,0.0001489,2]
[328976346,1718039433294,-1658.31563379,0.000149,2]
[328976347,1718039433303,-20214.45,0.00014937,2]
[328976348,1718039433313,-9275.92,0.00014937,2]
[328976349,1718039433322,-2117.19,0.00014939,2]
[328976350,1718039433332,-171.23,0.00014939,2]
[328976351,1718039433342,-150.99,0.0001499,2]
[328976352,1718039433351,-801.87,0.0001499,2]
[328976353,1718039433362,-908.93,0.0001499,2]
[328976354,1718039433371,-1046.53950054,0.00015,2]
[328976355,1718039433381,-155.0,0.00015,2]
[328976356,1718039433392,-289.69900753,0.00015,2]
[328976357,1718039433401,-1042.16808619,0.00015,2]
[328976358,1718039433411,-34966.97943608,0.00015,2]
[328976359,1718039433420,-214.94,0.00015,2]
[328976360,1718039433430,-150.99,0.00015,2]
[328976361,1718039433439,-174.07,0.00015108,2]
[328976362,1718039433449,-250.0,0.00015291,2]
[328976363,1718039433459,-1000.0,0.00015309,2]
[328976364,1718039433468,-999.23522357,0.00015398,2]
[328976365,1718039433477,-154.82,0.00016275,2]
[328976366,1718039433487,-154.82,0.00016345,2]
[328976367,1718039433496,-154.82,0.00016416,2]
[328976368,1718039433505,-1336.19,0.00016438,2]
[328976369,1718039433514,-154.82,0.00016487,2]
[328976370,1718039433524,-154.82,0.00016557,2]
[328976371,1718039433533,-154.82,0.00016628,2]
[328976372,1718039433542,-154.82,0.00016699,2]
[328976373,1718039433552,-154.82,0.00016769,2]
[328976374,1718039433560,-154.82,0.0001684,2]
[328976375,1718039433570,-999.23522357,0.00016848,2]
[328976376,1718039433579,-150.0,0.00016849,2]
[328976377,1718039433589,-154.82,0.00016911,2]
[328976378,1718039433598,-193.88,0.00016933,2]
[328976379,1718039433608,-154.82,0.00016982,2]
[328976380,1718039433617,-1658.31563372,0.00017043,2]
[328976381,1718039433626,-154.82,0.00017052,2]
[328976382,1718039433637,-154.82,0.00017123,2]
[328976383,1718039433646,-1000.0,0.00017222,2]
[328976384,1718039433655,-3000.0,0.0001735,2]
[328976385,1718039433665,-379.24,0.00017498,2]
[328976386,1718039433675,-2117.19,0.00017678,2]
[328976387,1718039433684,-10499.999999,0.00018,2]
[328976388,1718039433695,-999.23522357,0.00018299,2]
[328976389,1718039433704,-2000.0,0.00018356,3]
[328976390,1718039433714,-500.0,0.000185,2]
[328976391,1718039433723,-1000.0,0.00019136,2]
[328976392,1718039433733,-500.0,0.00019178,2]
[328976393,1718039433742,-153.0329134,0.00019178,2]
[328976394,1718039433752,-500.0,0.00019178,2]
[328976395,1718039433761,-500.0,0.00019178,2]
[328976396,1718039433770,-500.0,0.00019178,2]
[328976397,1718039433780,-516.97024773,0.00019178,2]
[328976398,1718039433790,-500.0,0.00019178,2]
[328976399,1718039433799,-500.0,0.00019178,2]
[328976400,1718039433809,-384.46381601,0.00019178,2]
[328976401,1718039433818,-1658.31563372,0.00019186,2]
[328976402,1718039433828,-250.0,0.00019247,2]
[328976403,1718039433838,-999.23522357,0.00019749,2]
[328976404,1718039433848,-379.24,0.00019762,2]
[328976405,1718039433858,-3000.0,0.0001985,2]
[328976406,1718039433873,-446.70319109,0.0002,2]
[328976407,1718039433882,-226.69645122,0.000201,2]
[328976408,1718039433894,-2117.19,0.00020418,2]
[328976409,1718039433903,-1000.0,0.0002105,2]
[328976410,1718039433912,-999.23522357,0.00021199,2]
[328976411,1718039433921,-1658.31563372,0.00021329,2]
[328976412,1718039433931,-1000.0,0.000219,2]
[328976413,1718039433940,-536.0,0.00021918,2]
[328976414,1718039433949,-250.0,0.00021918,2]
[328976415,1718039433959,-317.97446,0.00021918,2]
[328976416,1718039433969,-379.24,0.00022026,2]
[328976417,1718039433979,-3000.0,0.0002235,2]
[328976418,1718039433988,-171.68,0.00022366,2]
[328976419,1718039433999,-171.23,0.00022408,2]
[328976420,1718039434009,-999.23522357,0.00022649,2]
[328976421,1718039434018,-317.97446,0.0002274,2]
[328976422,1718039434028,-1000.0,0.00022963,2]
[328976423,1718039434037,-1658.31563372,0.00023471,2]
[328976424,1718039434047,-317.97446,0.00023562,2]
[328976425,1718039434056,-152.45,0.00023911,2]
[328976426,1718039434066,-152.45,0.0002393,2]
[328976427,1718039434075,-152.45,0.0002395,2]
[328976428,1718039434084,-152.45,0.0002397,2]
[328976430,1718039434094,-155.21,0.00023985,2]
[328976432,1718039434105,-152.45,0.0002399,2]
[328976434,1718039434114,-152.45,0.0002401,2]
[328976436,1718039434123,-152.45,0.0002403,2]
[328976438,1718039434133,-999.23522357,0.00024099,2]
[328976440,1718039434146,-180.0,0.0002423,2]
[328976442,1718039434155,-379.24,0.0002429,2]
[328976444,1718039434165,-297.34,0.00024384,2]
[328976446,1718039434175,-164.24,0.00024384,2]
[328976448,1718039434185,-171.68,0.00024384,2]
[328976450,1718039434199,-317.97446,0.00024384,2]
[328976452,1718039434208,-500.0,0.000247,2]
[328976454,1718039434217,-1651.90282935,0.00024798,2]
[328976456,1718039434227,-1651.90282929,0.00024798,2]
[328976458,1718039434237,-1651.90282929,0.00024798,2]
[328976460,1718039434246,-1651.90282929,0.00024798,2]
[328976462,1718039434255,-1651.90282929,0.00024798,2]
[328976464,1718039434264,-1651.90282929,0.00024798,2]
[328976465,1718039434277,-3000.0,0.0002485,2]
[328976466,1718039434288,-1651.90282929,0.000249,2]
[328976467,1718039434298,-1250.0,0.00025,2]
[328976468,1718039434307,-317.97446,0.00025205,2]
[328976470,1718039434317,-1000.0,0.00025205,2]
[328976471,1718039434326,-999.23522357,0.00025549,2]
[328976472,1718039434335,-1658.31563372,0.00025614,2]
[328976473,1718039434344,-163.78,0.0002589,2]
[328976475,1718039434354,-160.00295818,0.00026019,2]
[328976477,1718039434364,-317.97446,0.00026027,2]
[328976478,1718039434373,-159.76582172,0.0002604,2]
[328976481,1718039434403,-0.23713646,0.0002604,2]
[328976482,1718039434412,-155.59941444,0.00026257,2]
[328976483,1718039434421,-3255.27363326,0.00026285,2]
[328976484,1718039434432,-1899.72636674,0.00026285,2]
[328976485,1718039434442,-1467.0,0.00026285,2]
[328976486,1718039434452,-5765.0,0.00026285,2]
[328976487,1718039434462,-290.0,0.00026285,2]
[328976488,1718039434472,-38061.0,0.00026285,2]
[328976489,1718039434482,-152.45577067,0.00026312,2]
[328976490,1718039434491,-155.00188313,0.00026372,2]
[328976491,1718039434502,-153.01690197,0.0002643,2]
[328976492,1718039434512,-160.00295818,0.00026538,2]
[328976493,1718039434522,-379.24,0.00026554,2]
[328976494,1718039434533,-1651.90282929,0.00026567,2]
[328976495,1718039434542,-282.1196435,0.00026698,2]
[328976496,1718039434552,-157.200825,0.00026705,2]
[328976497,1718039434563,-154.70281908,0.00026796,2]
[328976498,1718039434573,-317.97446,0.00026849,2]
[328976499,1718039434583,-153.01690197,0.00026908,2]
[328976500,1718039434593,-160.00295818,0.00026943,2]
[328976501,1718039434603,-153.01690197,0.00026972,2]
[328976502,1718039434613,-999.23522357,0.00027,2]
[328976503,1718039434624,-838.75066033,0.00027,2]
[328976504,1718039434634,-200.0,0.00027,2]
[328976505,1718039434645,-1300.0,0.00027,2]
[328976506,1718039434654,-153.01690197,0.00027039,2]
[328976507,1718039434664,-153.01690197,0.00027061,2]
[328976508,1718039434674,-152.45577067,0.00027098,2]
[328976509,1718039434684,-535.691808,0.00027119,2]
[328976510,1718039434695,-1683.2227,0.00027119,2]
[328976511,1718039434705,-3305.104355,0.00027119,2]
[328976512,1718039434714,-420.805674,0.00027119,2]
[328976513,1718039434725,-167.403691,0.00027119,2]
[328976514,1718039434735,-152.45577067,0.00027119,2]
[328976515,1718039434745,-157.200825,0.00027123,2]
[328976516,1718039434755,-153.01690197,0.00027159,2]
[328976517,1718039434765,-2011.37343874,0.000272,2]
[328976518,1718039434775,-155.59941445,0.00027206,2]
[328976519,1718039434785,-152.45577067,0.00027255,2]
[328976520,1718039434795,-166.51827645,0.00027286,2]
[328976521,1718039434805,-153.01690197,0.00027298,2]
[328976522,1718039434815,-151.0,0.00027319,4]
[328976523,1718039434825,-3000.0,0.0002735,2]
[328976524,1718039434835,-153.01690197,0.00027356,2]
[328976525,1718039434845,-806.64368738,0.0002739,2]
[328976526,1718039434855,-532.69,0.00027397,10]
[328976527,1718039434865,-500.0,0.000274,2]
[328976528,1718039434875,-162.51,0.000274,2]
[328976529,1718039434887,-535.691808,0.00027458,2]
[328976530,1718039434896,-1683.2227,0.00027458,2]
[328976531,1718039434905,-3305.104355,0.00027458,2]
[328976532,1718039434915,-420.805674,0.00027458,2]
[328976533,1718039434925,-157.200825,0.00027545,2]
[328976534,1718039434935,-167.403691,0.00027571,2]
[328976535,1718039434944,-157.93267062,0.00027591,2]
[328976536,1718039434955,-166.51827645,0.00027611,2]
[328976537,1718039434964,-154.70281908,0.00027621,2]
[328976538,1718039434975,-151.92,0.00027655,2]
[328976539,1718039434986,-975.0,0.00027665,2]
[328976540,1718039434997,-1830.0,0.00027665,2]
[328976541,1718039435007,-1272.139,0.00027665,2]
[328976542,1718039435017,-566.614,0.00027665,2]
[328976543,1718039435030,-2406.0,0.00027665,2]
[328976544,1718039435040,-447.0,0.00027665,2]
[328976545,1718039435051,-193.906,0.00027665,2]
[328976546,1718039435061,-1117.0,0.00027665,2]
[328976547,1718039435071,-300.0,0.00027665,2]
[328976548,1718039435080,-3165.0,0.00027665,2]
[328976549,1718039435090,-317.97446,0.00027671,14]
[328976550,1718039435100,-154.70281908,0.00027717,2]
[328976551,1718039435110,-1658.31563372,0.00027757,2]
[328976552,1718039435120,-535.691808,0.00027797,2]
[328976553,1718039435130,-1683.2227,0.00027797,2]
[328976554,1718039435143,-3305.104355,0.00027797,2]
[328976555,1718039435153,-420.805674,0.00027797,2]
[328976556,1718039435163,-154.70281908,0.00027854,2]
[328976557,1718039435174,-153.77838055,0.00027858,2]
[328976558,1718039435184,-151.0,0.00027876,2]
[328976559,1718039435199,-160.00295818,0.00027901,2]
[328976560,1718039435210,-157.200825,0.00027935,2]
[328976561,1718039435220,-157.200825,0.0002798,2]
[328976562,1718039435231,-17237.6549628,0.00028,2]
[328976563,1718039435240,-162.51,0.00028013,2]
[328976564,1718039435250,-167.403691,0.00028023,2]